[Event "Late-Titled-Tuesday-Blitz-June-04-2024"]
[Site "Chess.com"]
[Date "2024.06.04"]
[Round "9"]
[White "jlf287"]
[Black "Meri-Arabidze"]
[Result "0-1"]
[WhiteElo "2510"]
[BlackElo "2682"]
[TimeControl "180+1"]
[EndTime "15:43:08 PDT"]
[Termination "Meri-Arabidze won on time"]

1. Nf3 {[%clk 0:03:00.9]} 1... d5 {[%clk 0:02:59.7]} 2. g3 {[%clk 0:03:00.2]}
2... Nf6 {[%clk 0:02:59.9]} 3. Bg2 {[%clk 0:03:00.4]} 3... e6 {[%clk 0:03:00.4]}
4. O-O {[%clk 0:03:00.5]} 4... Be7 {[%clk 0:03:01]} 5. c4 {[%clk 0:03:00.9]}
5... O-O {[%clk 0:02:59.8]} 6. d4 {[%clk 0:03:01.1]} 6... dxc4 {[%clk
0:02:59.1]} 7. Qc2 {[%clk 0:03:01.5]} 7... b6 {[%clk 0:02:59.4]} 8. Rd1 {[%clk
0:03:01.9]} 8... Bb7 {[%clk 0:02:59.1]} 9. Qxc4 {[%clk 0:03:00.1]} 9... Nbd7
{[%clk 0:02:59.2]} 10. Nc3 {[%clk 0:02:59.7]} 10... c5 {[%clk 0:02:55.8]} 11.
dxc5 {[%clk 0:02:53]} 11... Bxc5 {[%clk 0:02:56.3]} 12. b4 {[%clk 0:02:37.5]}
12... Bxf2+ {[%clk 0:02:56.1]} 13. Kxf2 {[%clk 0:02:33.9]} 13... Rc8 {[%clk
0:02:56.7]} 14. Qh4 {[%clk 0:02:16]} 14... Rxc3 {[%clk 0:02:53.2]} 15. Kg1
{[%clk 0:02:13]} 15... Rc2 {[%clk 0:02:16.1]} 16. Nd4 {[%clk 0:01:48.6]} 16...
Bxg2 {[%clk 0:02:09.8]} 17. Nxc2 {[%clk 0:01:48]} 17... Be4 {[%clk 0:02:09.4]}
18. Nd4 {[%clk 0:01:44.4]} 18... Qa8 {[%clk 0:02:02.4]} 19. Bb2 {[%clk
0:01:29.7]} 19... h6 {[%clk 0:01:48.3]} 20. Rac1 {[%clk 0:01:27]} 20... Ne5
{[%clk 0:01:41.4]} 21. Qf4 {[%clk 0:01:19.4]} 21... Ng6 {[%clk 0:01:38.4]} 22.
Qf1 {[%clk 0:01:11.3]} 22... Nd5 {[%clk 0:01:33]} 23. Qf2 {[%clk 0:01:03.2]}
23... Nxb4 {[%clk 0:01:28.1]} 24. Rc7 {[%clk 0:00:50.8]} 24... Nd5 {[%clk
0:01:19.1]} 25. Rd7 {[%clk 0:00:37.1]} 25... Nf6 {[%clk 0:01:19]} 26. Rc7 {[%clk
0:00:33.9]} 26... Ng4 {[%clk 0:01:17.9]} 27. Qe1 {[%clk 0:00:29.2]} 27... Bh1
{[%clk 0:01:04.3]} 28. e4 {[%clk 0:00:29.2]} 28... Bxe4 {[%clk 0:01:04.2]} 29.
Nxe6 {[%clk 0:00:27]} 29... N6e5 {[%clk 0:00:44]} 30. Nd4 {[%clk 0:00:06.7]}
30... Re8 {[%clk 0:00:31.6]} 31. Qd2 {[%clk 0:00:04.1]} 31... Rd8 {[%clk
0:00:22.5]} 32. Qc3 {[%clk 0:00:02.9]} 32... Qd5 {[%clk 0:00:17.9]} 33. Rf1
{[%clk 0:00:01.3]} 33... a5 {[%clk 0:00:09.9]} 34. Rc8 {[%clk 0:00:01.7]} 34...
Rxc8 {[%clk 0:00:07.4]} 35. Qxc8+ {[%clk 0:00:01.5]} 35... Kh7 {[%clk
0:00:08.3]} 36. Qc3 {[%clk 0:00:02.1]} 36... f5 {[%clk 0:00:08]} 37. h3 {[%clk
0:00:01.5]} 37... Nf6 {[%clk 0:00:07.8]} 38. Ne2 {[%clk 0:00:01.2]} 38... Nd3
{[%clk 0:00:06.9]} 0-1

[Event "Late-Titled-Tuesday-Blitz-June-04-2024"]
[Site "Chess.com"]
[Date "2024.06.04"]
[Round "9"]
[White "Nf3c5"]
[Black "IMRosen"]
[Result "0-1"]
[WhiteElo "2614"]
[BlackElo "2747"]
[TimeControl "180+1"]
[EndTime "15:43:09 PDT"]
[Termination "IMRosen won on time"]

1. e4 {[%clk 0:03:00.9]} 1... c5 {[%clk 0:02:57.5]} 2. Nc3 {[%clk 0:02:59.3]}
2... e6 {[%clk 0:02:55.6]} 3. d4 {[%clk 0:02:58]} 3... cxd4 {[%clk 0:02:53.6]}
4. Qxd4 {[%clk 0:02:58.9]} 4... Nc6 {[%clk 0:02:54.1]} 5. Qd3 {[%clk 0:02:57.4]}
5... Nf6 {[%clk 0:02:44.5]} 6. Bf4 {[%clk 0:02:56]} 6... Bb4 {[%clk 0:02:11.1]}
7. O-O-O {[%clk 0:02:50.4]} 7... O-O {[%clk 0:02:09.2]} 8. Nge2 {[%clk 0:02:46]}
8... d5 {[%clk 0:02:05.9]} 9. a3 {[%clk 0:02:31.5]} 9... Bxc3 {[%clk 0:01:44.5]}
10. Nxc3 {[%clk 0:02:23.1]} 10... d4 {[%clk 0:01:44.9]} 11. e5 {[%clk 0:02:05]}
11... dxc3 {[%clk 0:01:33.7]} 12. Qxd8 {[%clk 0:01:58.8]} 12... cxb2+ {[%clk
0:01:34]} 13. Kxb2 {[%clk 0:01:57.2]} 13... Rxd8 {[%clk 0:01:33.8]} 14. Rxd8+
{[%clk 0:01:55.6]} 14... Nxd8 {[%clk 0:01:34.7]} 15. exf6 {[%clk 0:01:55.9]}
15... gxf6 {[%clk 0:01:35.6]} 16. g4 {[%clk 0:01:44.6]} 16... e5 {[%clk
0:01:34.1]} 17. Be3 {[%clk 0:01:45]} 17... Be6 {[%clk 0:01:30.1]} 18. g5 {[%clk
0:01:39.2]} 18... f5 {[%clk 0:01:25.9]} 19. f4 {[%clk 0:01:39.7]} 19... e4
{[%clk 0:00:34.8]} 20. h4 {[%clk 0:01:28.5]} 20... Nc6 {[%clk 0:00:35.1]} 21.
Bb5 {[%clk 0:01:23.7]} 21... Na5 {[%clk 0:00:26.5]} 22. h5 {[%clk 0:01:23.3]}
22... Bc4 {[%clk 0:00:19.6]} 23. Ba4 {[%clk 0:01:23]} 23... b5 {[%clk
0:00:06.9]} 24. Bb3 {[%clk 0:01:08.3]} 24... a6 {[%clk 0:00:07]} 25. Bd4 {[%clk
0:01:01.4]} 25... Rd8 {[%clk 0:00:06.5]} 26. Bc3 {[%clk 0:01:01.8]} 26... Nxb3
{[%clk 0:00:04.6]} 27. cxb3 {[%clk 0:01:01.3]} 27... Be6 {[%clk 0:00:05.3]} 28.
g6 {[%clk 0:01:01.6]} 28... h6 {[%clk 0:00:02.8]} 29. Rg1 {[%clk 0:00:59.9]}
29... Kf8 {[%clk 0:00:02.4]} 30. Bf6 {[%clk 0:00:28.2]} 30... Rc8 {[%clk
0:00:02.7]} 31. Be5 {[%clk 0:00:17.7]} 31... a5 {[%clk 0:00:03]} 32. gxf7 {[%clk
0:00:10.1]} 32... Bxf7 {[%clk 0:00:03]} 33. Bg7+ {[%clk 0:00:08.9]} 33... Ke7
{[%clk 0:00:02.9]} 34. Bxh6 {[%clk 0:00:09.6]} 34... Bxh5 {[%clk 0:00:03.2]} 35.
Bg5+ {[%clk 0:00:10.3]} 35... Ke6 {[%clk 0:00:03.3]} 36. Rh1 {[%clk 0:00:07.9]}
36... Bf3 {[%clk 0:00:03.3]} 37. Rh6+ {[%clk 0:00:08.6]} 37... Kd5 {[%clk
0:00:03.9]} 38. Be7 {[%clk 0:00:07.8]} 38... e3 {[%clk 0:00:02.6]} 39. Rd6+
{[%clk 0:00:01.3]} 39... Ke4 {[%clk 0:00:03.1]} 0-1

[Event "Late-Titled-Tuesday-Blitz-June-04-2024"]
[Site "Chess.com"]
[Date "2024.06.04"]
[Round "9"]
[White "CMmauricio"]
[Black "Oleg_Papayan"]
[Result "1-0"]
[WhiteElo "2776"]
[BlackElo "2566"]
[TimeControl "180+1"]
[EndTime "15:43:10 PDT"]
[Termination "CMmauricio won on time"]

1. f4 {[%clk 0:03:00.9]} 1... d5 {[%clk 0:02:56.7]} 2. Nf3 {[%clk 0:03:00.9]}
2... g6 {[%clk 0:02:56.9]} 3. e3 {[%clk 0:03:01.2]} 3... Bg7 {[%clk 0:02:57.2]}
4. d4 {[%clk 0:03:01.9]} 4... c5 {[%clk 0:02:57.6]} 5. c3 {[%clk 0:03:02.5]}
5... Nc6 {[%clk 0:02:58.2]} 6. Bd3 {[%clk 0:03:03.1]} 6... Bf5 {[%clk
0:02:57.1]} 7. Bxf5 {[%clk 0:03:02.5]} 7... gxf5 {[%clk 0:02:57.4]} 8. O-O
{[%clk 0:03:03.4]} 8... e6 {[%clk 0:02:54.8]} 9. Ne5 {[%clk 0:03:04]} 9... Nf6
{[%clk 0:02:50.5]} 10. Rf3 {[%clk 0:03:04.4]} 10... Nxe5 {[%clk 0:02:44.7]} 11.
fxe5 {[%clk 0:03:05.3]} 11... Ne4 {[%clk 0:02:44.5]} 12. Rh3 {[%clk 0:03:06.1]}
12... Qc7 {[%clk 0:02:36.3]} 13. Nd2 {[%clk 0:03:03.7]} 13... O-O-O {[%clk
0:02:33.3]} 14. Nxe4 {[%clk 0:02:59.3]} 14... dxe4 {[%clk 0:02:32.1]} 15. Bd2
{[%clk 0:02:58.1]} 15... Bxe5 {[%clk 0:02:29.8]} 16. dxe5 {[%clk 0:02:57.9]}
16... Qd7 {[%clk 0:02:30.3]} 17. Qh5 {[%clk 0:02:46.9]} 17... Qxd2 {[%clk
0:02:28.3]} 18. Qxf7 {[%clk 0:02:47.6]} 18... Rhg8 {[%clk 0:01:52.3]} 19. Qxe6+
{[%clk 0:02:47.2]} 19... Kb8 {[%clk 0:01:52.8]} 20. Rg3 {[%clk 0:02:34.2]} 20...
Rxg3 {[%clk 0:01:19.8]} 21. hxg3 {[%clk 0:02:34.4]} 21... Qxe3+ {[%clk
0:01:20.3]} 22. Kh2 {[%clk 0:02:34.7]} 22... f4 {[%clk 0:01:21.2]} 23. Qg4
{[%clk 0:02:13]} 23... f3 {[%clk 0:00:57.8]} 24. gxf3 {[%clk 0:00:38.3]} 24...
exf3 {[%clk 0:00:54]} 25. Qf4 {[%clk 0:00:33.1]} 25... Qf2+ {[%clk 0:00:47.7]}
26. Kh3 {[%clk 0:00:32.1]} 26... Qg2+ {[%clk 0:00:48.1]} 27. Kh4 {[%clk
0:00:25.4]} 27... Rg8 {[%clk 0:00:23.3]} 28. e6+ {[%clk 0:00:24.2]} 28... Kc8
{[%clk 0:00:21.8]} 29. g4 {[%clk 0:00:21.2]} 29... h5 {[%clk 0:00:19.1]} 30. g5
{[%clk 0:00:10.9]} 30... f2 {[%clk 0:00:17.9]} 31. e7 {[%clk 0:00:11]} 31... Re8
{[%clk 0:00:01.4]} 32. Rd1 {[%clk 0:00:08]} 32... Qg4+ {[%clk 0:00:01.2]} 33.
Qxg4+ {[%clk 0:00:06.3]} 33... hxg4 {[%clk 0:00:02.1]} 34. Kxg4 {[%clk
0:00:05.9]} 34... Rxe7 {[%clk 0:00:02.3]} 35. Rf1 {[%clk 0:00:06.5]} 35... Re2
{[%clk 0:00:01.6]} 36. g6 {[%clk 0:00:07]} 36... Kd7 {[%clk 0:00:02]} 37. g7
{[%clk 0:00:06]} 37... Re8 {[%clk 0:00:02.6]} 38. Kg5 {[%clk 0:00:06.1]} 38...
Rg8 {[%clk 0:00:02.5]} 39. Kg6 {[%clk 0:00:06.7]} 39... Ke7 {[%clk 0:00:03.2]}
40. Rxf2 {[%clk 0:00:07.1]} 40... a6 {[%clk 0:00:03.4]} 41. Rf7+ {[%clk
0:00:07]} 1-0

[Event "Late-Titled-Tuesday-Blitz-June-04-2024"]
[Site "Chess.com"]
[Date "2024.06.04"]
[Round "9"]
[White "simaopdias"]
[Black "WilliamAlfaroCaracas"]
[Result "0-1"]
[WhiteElo "2216"]
[BlackElo "2374"]
[TimeControl "180+1"]
[EndTime "15:43:10 PDT"]
[Termination "WilliamAlfaroCaracas won on time"]

1. e4 {[%clk 0:03:00.6]} 1... c5 {[%clk 0:02:57.2]} 2. Nf3 {[%clk 0:03:01.2]}
2... Nc6 {[%clk 0:02:56.7]} 3. d4 {[%clk 0:03:01.9]} 3... cxd4 {[%clk
0:02:57.6]} 4. Nxd4 {[%clk 0:03:02.5]} 4... d6 {[%clk 0:02:56.4]} 5. Nc3 {[%clk
0:02:59]} 5... Nf6 {[%clk 0:02:56.8]} 6. Be2 {[%clk 0:02:56.9]} 6... e5 {[%clk
0:02:55.6]} 7. Nf5 {[%clk 0:02:55.5]} 7... Bxf5 {[%clk 0:02:55]} 8. exf5 {[%clk
0:02:55.6]} 8... h6 {[%clk 0:02:53.7]} 9. O-O {[%clk 0:02:54]} 9... d5 {[%clk
0:02:52]} 10. Bb5 {[%clk 0:02:45.2]} 10... Bc5 {[%clk 0:02:27.4]} 11. Re1 {[%clk
0:02:41.4]} 11... e4 {[%clk 0:02:25.9]} 12. Na4 {[%clk 0:01:39.4]} 12... Bd6
{[%clk 0:02:23.4]} 13. c4 {[%clk 0:01:34.5]} 13... d4 {[%clk 0:02:08.2]} 14. c5
{[%clk 0:01:30.6]} 14... Bc7 {[%clk 0:01:51.4]} 15. b4 {[%clk 0:01:27.5]} 15...
O-O {[%clk 0:01:50]} 16. Bxc6 {[%clk 0:01:27.1]} 16... bxc6 {[%clk 0:01:48]} 17.
Nb2 {[%clk 0:01:17.5]} 17... Re8 {[%clk 0:01:44.3]} 18. Nc4 {[%clk 0:01:15.2]}
18... Qd5 {[%clk 0:01:31.5]} 19. Qb3 {[%clk 0:01:10.6]} 19... Rad8 {[%clk
0:01:27.6]} 20. Bb2 {[%clk 0:01:08.8]} 20... Qxf5 {[%clk 0:01:20.7]} 21. Rad1
{[%clk 0:01:04.8]} 21... Ng4 {[%clk 0:01:14.1]} 22. f3 {[%clk 0:00:29.1]} 22...
Bxh2+ {[%clk 0:00:39.4]} 23. Kf1 {[%clk 0:00:21.7]} 23... Bg3 {[%clk 0:00:35.2]}
24. Bxd4 {[%clk 0:00:14.5]} 24... Bxe1 {[%clk 0:00:22.6]} 25. Kxe1 {[%clk
0:00:13.4]} 25... exf3+ {[%clk 0:00:22.1]} 26. Kf1 {[%clk 0:00:09.1]} 26...
fxg2+ {[%clk 0:00:18.1]} 27. Kxg2 {[%clk 0:00:08.5]} 27... Qe4+ {[%clk
0:00:18.6]} 28. Qf3 {[%clk 0:00:07.5]} 28... Rxd4 {[%clk 0:00:18.4]} 29. Rxd4
{[%clk 0:00:03.6]} 29... Qxd4 {[%clk 0:00:19.3]} 30. Nd6 {[%clk 0:00:03.3]}
30... Re7 {[%clk 0:00:18.1]} 31. Kg3 {[%clk 0:00:02.5]} 31... Ne5 {[%clk
0:00:17.8]} 32. Qf4 {[%clk 0:00:01.6]} 32... Qxf4+ {[%clk 0:00:17.6]} 33. Kxf4
{[%clk 0:00:02]} 33... Ng6+ {[%clk 0:00:17.9]} 34. Kf5 {[%clk 0:00:02.3]} 34...
h5 {[%clk 0:00:17.3]} 35. Kg5 {[%clk 0:00:02.9]} 35... h4 {[%clk 0:00:17.3]} 36.
Kg4 {[%clk 0:00:02.4]} 36... Re6 {[%clk 0:00:16.1]} 37. a4 {[%clk 0:00:01.9]}
37... Rxd6 {[%clk 0:00:16.1]} 38. cxd6 {[%clk 0:00:01.9]} 38... Kf8 {[%clk
0:00:17]} 39. b5 {[%clk 0:00:01.8]} 39... cxb5 {[%clk 0:00:17.3]} 40. axb5
{[%clk 0:00:02.7]} 40... Ke8 {[%clk 0:00:17.4]} 0-1

[Event "Late-Titled-Tuesday-Blitz-June-04-2024"]
[Site "Chess.com"]
[Date "2024.06.04"]
[Round "9"]
[White "grzechu96"]
[Black "osh1ro"]
[Result "0-1"]
[WhiteElo "2779"]
[BlackElo "2637"]
[TimeControl "180+1"]
[EndTime "15:43:13 PDT"]
[Termination "osh1ro won on time"]

1. e4 {[%clk 0:03:00.9]} 1... e6 {[%clk 0:02:58.6]} 2. d4 {[%clk 0:03:00.9]}
2... d5 {[%clk 0:02:58.5]} 3. e5 {[%clk 0:02:59.6]} 3... c5 {[%clk 0:02:58]} 4.
c3 {[%clk 0:02:59.6]} 4... Qb6 {[%clk 0:02:58.4]} 5. Nf3 {[%clk 0:02:59.4]} 5...
Nc6 {[%clk 0:02:59]} 6. a3 {[%clk 0:02:57]} 6... cxd4 {[%clk 0:02:58.7]} 7. cxd4
{[%clk 0:02:56.5]} 7... Bd7 {[%clk 0:02:57.8]} 8. Nc3 {[%clk 0:02:56.5]} 8...
Nge7 {[%clk 0:02:44.9]} 9. Be2 {[%clk 0:02:50.8]} 9... Nf5 {[%clk 0:02:44.5]}
10. Na4 {[%clk 0:02:51.4]} 10... Qd8 {[%clk 0:02:36.9]} 11. O-O {[%clk
0:02:46.2]} 11... Be7 {[%clk 0:02:34.1]} 12. b4 {[%clk 0:02:45.2]} 12... b6
{[%clk 0:02:29.4]} 13. Nc3 {[%clk 0:02:34.4]} 13... O-O {[%clk 0:02:27.1]} 14.
g4 {[%clk 0:02:26.9]} 14... Nh4 {[%clk 0:02:23]} 15. Nxh4 {[%clk 0:02:27.3]}
15... Bxh4 {[%clk 0:02:22.5]} 16. f4 {[%clk 0:02:27.9]} 16... f6 {[%clk
0:01:59.7]} 17. exf6 {[%clk 0:02:27.2]} 17... Bxf6 {[%clk 0:01:58.7]} 18. Be3
{[%clk 0:02:27.8]} 18... Rc8 {[%clk 0:01:50.8]} 19. Qd2 {[%clk 0:02:27.1]} 19...
g6 {[%clk 0:01:46.8]} 20. Kg2 {[%clk 0:02:04.9]} 20... Bg7 {[%clk 0:01:46.4]}
21. Kg3 {[%clk 0:02:00.7]} 21... Ne7 {[%clk 0:01:28.9]} 22. Bd3 {[%clk 0:01:51]}
22... Rc7 {[%clk 0:01:28.3]} 23. Ne2 {[%clk 0:01:50]} 23... Nc8 {[%clk
0:01:26.9]} 24. h4 {[%clk 0:01:45.2]} 24... Nd6 {[%clk 0:01:24.6]} 25. Rac1
{[%clk 0:01:27.8]} 25... Bb5 {[%clk 0:01:24.2]} 26. Rxc7 {[%clk 0:01:00.4]}
26... Qxc7 {[%clk 0:01:25.1]} 27. Rc1 {[%clk 0:01:00.6]} 27... Qd7 {[%clk
0:01:23.6]} 28. Nc3 {[%clk 0:00:58.2]} 28... Bxd3 {[%clk 0:01:16.8]} 29. Qxd3
{[%clk 0:00:59.1]} 29... Nc4 {[%clk 0:01:16.5]} 30. Rh1 {[%clk 0:00:42.1]} 30...
Bh6 {[%clk 0:00:42.8]} 31. Ne2 {[%clk 0:00:38]} 31... Nd6 {[%clk 0:00:39.5]} 32.
Kg2 {[%clk 0:00:12.9]} 32... Ne4 {[%clk 0:00:29.3]} 33. g5 {[%clk 0:00:09.5]}
33... Bg7 {[%clk 0:00:27.2]} 34. h5 {[%clk 0:00:10]} 34... Qf7 {[%clk
0:00:18.5]} 35. h6 {[%clk 0:00:10]} 35... Bh8 {[%clk 0:00:17.6]} 36. Ng3 {[%clk
0:00:10]} 36... e5 {[%clk 0:00:09.1]} 37. Nxe4 {[%clk 0:00:05.4]} 37... dxe4
{[%clk 0:00:06.8]} 38. Qxe4 {[%clk 0:00:06]} 38... exf4 {[%clk 0:00:07.4]} 39.
Rf1 {[%clk 0:00:05.8]} 39... Qf5 {[%clk 0:00:05.1]} 40. Qxf5 {[%clk 0:00:02.3]}
40... Rxf5 {[%clk 0:00:06]} 0-1

[Event "Late-Titled-Tuesday-Blitz-June-04-2024"]
[Site "Chess.com"]
[Date "2024.06.04"]
[Round "9"]
[White "Pig-filth"]
[Black "whiteglovethief"]
[Result "1-0"]
[WhiteElo "2353"]
[BlackElo "2515"]
[TimeControl "180+1"]
[EndTime "15:43:16 PDT"]
[Termination "Pig-filth won by resignation"]

1. d4 {[%clk 0:03:00.9]} 1... Nf6 {[%clk 0:02:58.6]} 2. Bg5 {[%clk 0:03:00.4]}
2... Ne4 {[%clk 0:02:50.1]} 3. Bh4 {[%clk 0:02:58.5]} 3... d5 {[%clk 0:02:50.2]}
4. Nd2 {[%clk 0:02:47.4]} 4... g5 {[%clk 0:02:46.6]} 5. Bg3 {[%clk 0:02:43.7]}
5... Bg7 {[%clk 0:02:41.9]} 6. Nxe4 {[%clk 0:02:40.3]} 6... dxe4 {[%clk
0:02:42.8]} 7. e3 {[%clk 0:02:40.9]} 7... O-O {[%clk 0:02:41.9]} 8. h4 {[%clk
0:02:36.9]} 8... g4 {[%clk 0:02:41.1]} 9. h5 {[%clk 0:02:33.1]} 9... h6 {[%clk
0:02:39.7]} 10. Ne2 {[%clk 0:02:29]} 10... Nc6 {[%clk 0:02:35.6]} 11. Nc3 {[%clk
0:02:25.5]} 11... f5 {[%clk 0:02:27.3]} 12. Bc4+ {[%clk 0:02:21.4]} 12... Kh8
{[%clk 0:02:25.6]} 13. Qd2 {[%clk 0:02:16.2]} 13... e5 {[%clk 0:02:24.3]} 14. d5
{[%clk 0:02:12.8]} 14... Na5 {[%clk 0:02:23.1]} 15. Be2 {[%clk 0:02:11]} 15...
c6 {[%clk 0:02:18.9]} 16. b4 {[%clk 0:02:03.6]} 16... cxd5 {[%clk 0:02:11.8]}
17. bxa5 {[%clk 0:02:03.8]} 17... d4 {[%clk 0:02:01.6]} 18. exd4 {[%clk
0:02:04.7]} 18... exd4 {[%clk 0:02:01.1]} 19. Rd1 {[%clk 0:02:01.1]} 19... Be6
{[%clk 0:01:45.9]} 20. Nb5 {[%clk 0:01:42.7]} 20... d3 {[%clk 0:01:41.8]} 21.
cxd3 {[%clk 0:01:34.5]} 21... a6 {[%clk 0:01:35.5]} 22. Nc7 {[%clk 0:01:29.9]}
22... Qc8 {[%clk 0:01:06.2]} 23. Nxa8 {[%clk 0:01:27]} 23... Bc3 {[%clk
0:01:05]} 24. Be5+ {[%clk 0:01:21.4]} 24... Bxe5 {[%clk 0:01:03.1]} 25. Qxh6+
{[%clk 0:01:18.6]} 25... Kg8 {[%clk 0:01:01.5]} 26. Qg6+ {[%clk 0:01:15.8]}
26... Kh8 {[%clk 0:01:01]} 27. Nb6 {[%clk 0:01:13.5]} 27... Qc6 {[%clk
0:00:50.7]} 28. dxe4 {[%clk 0:01:06.8]} 28... fxe4 {[%clk 0:00:48.9]} 29. O-O
{[%clk 0:00:52.8]} 29... Bf5 {[%clk 0:00:46]} 30. Qxc6 {[%clk 0:00:48.2]} 30...
bxc6 {[%clk 0:00:46.9]} 31. Bxa6 {[%clk 0:00:42.6]} 31... Kg7 {[%clk 0:00:43.2]}
32. Bb7 {[%clk 0:00:39.5]} 32... Rh8 {[%clk 0:00:42.6]} 33. a6 {[%clk
0:00:32.7]} 33... Rxh5 {[%clk 0:00:39.2]} 34. g3 {[%clk 0:00:23.1]} 34... e3
{[%clk 0:00:38.9]} 35. Bxc6 {[%clk 0:00:19.8]} 35... e2 {[%clk 0:00:37.8]} 36.
a7 {[%clk 0:00:17.1]} 36... exf1=Q+ {[%clk 0:00:36.6]} 37. Rxf1 {[%clk
0:00:15.8]} 37... Rh8 {[%clk 0:00:36.6]} 38. a8=Q {[%clk 0:00:10.9]} 38... Rxa8
{[%clk 0:00:34.7]} 39. Nxa8 {[%clk 0:00:11.8]} 39... Bd4 {[%clk 0:00:33.2]} 40.
Nc7 {[%clk 0:00:11.1]} 40... Kf6 {[%clk 0:00:32.7]} 41. Bd5 {[%clk 0:00:11]}
41... Ke5 {[%clk 0:00:31.7]} 42. Be6 {[%clk 0:00:09.5]} 42... Bxe6 {[%clk
0:00:31.2]} 43. Nxe6 {[%clk 0:00:10.4]} 43... Kxe6 {[%clk 0:00:31.4]} 44. a4
{[%clk 0:00:10.2]} 44... Ke5 {[%clk 0:00:30.4]} 45. a5 {[%clk 0:00:10.6]} 45...
Ke4 {[%clk 0:00:29.5]} 46. Rd1 {[%clk 0:00:09.2]} 46... Ba7 {[%clk 0:00:25.1]}
47. Kg2 {[%clk 0:00:09.6]} 47... Ke5 {[%clk 0:00:23.9]} 48. a6 {[%clk
0:00:10.2]} 1-0

[Event "Late-Titled-Tuesday-Blitz-June-04-2024"]
[Site "Chess.com"]
[Date "2024.06.04"]
[Round "9"]
[White "jcibarra"]
[Black "jk13"]
[Result "1-0"]
[WhiteElo "2913"]
[BlackElo "2683"]
[TimeControl "180+1"]
[EndTime "15:43:17 PDT"]
[Termination "jcibarra won by resignation"]

1. e4 {[%clk 0:03:00.9]} 1... e5 {[%clk 0:03:00.1]} 2. Nf3 {[%clk 0:03:00.2]}
2... Nc6 {[%clk 0:03:00.9]} 3. d4 {[%clk 0:02:59.4]} 3... exd4 {[%clk 0:03:01]}
4. Nxd4 {[%clk 0:02:59.9]} 4... Bb4+ {[%clk 0:03:01.1]} 5. c3 {[%clk 0:02:59.4]}
5... Bc5 {[%clk 0:03:01.8]} 6. Be3 {[%clk 0:02:59]} 6... Bb6 {[%clk 0:03:02.5]}
7. Nf5 {[%clk 0:02:58.9]} 7... Bxe3 {[%clk 0:03:02.6]} 8. Nxe3 {[%clk
0:02:58.8]} 8... Nge7 {[%clk 0:03:03.3]} 9. c4 {[%clk 0:02:56.4]} 9... O-O
{[%clk 0:03:04.2]} 10. Nc3 {[%clk 0:02:56.3]} 10... d6 {[%clk 0:03:05.1]} 11.
Bd3 {[%clk 0:02:46.8]} 11... Be6 {[%clk 0:02:51]} 12. O-O {[%clk 0:02:44.1]}
12... Qd7 {[%clk 0:02:50.6]} 13. f4 {[%clk 0:02:39.3]} 13... f5 {[%clk
0:02:50.8]} 14. Qc2 {[%clk 0:02:30.6]} 14... Nb4 {[%clk 0:02:48.6]} 15. Qd2
{[%clk 0:02:27.8]} 15... Nxd3 {[%clk 0:02:49.3]} 16. Qxd3 {[%clk 0:02:26.9]}
16... Rae8 {[%clk 0:02:31.2]} 17. Rad1 {[%clk 0:02:23]} 17... Qc8 {[%clk
0:02:20.3]} 18. h3 {[%clk 0:02:16.1]} 18... h6 {[%clk 0:02:20.2]} 19. g4 {[%clk
0:01:57.1]} 19... fxg4 {[%clk 0:01:54.4]} 20. f5 {[%clk 0:01:56.7]} 20... Bd7
{[%clk 0:01:51]} 21. hxg4 {[%clk 0:01:49.7]} 21... Nc6 {[%clk 0:01:51.2]} 22.
Qd5+ {[%clk 0:01:45]} 22... Kh7 {[%clk 0:01:45.4]} 23. g5 {[%clk 0:01:45.3]}
23... Qd8 {[%clk 0:01:29.1]} 24. gxh6 {[%clk 0:01:30.7]} 24... Qg5+ {[%clk
0:00:29.9]} 25. Kf2 {[%clk 0:01:30.2]} 25... g6 {[%clk 0:00:30.6]} 26. Rg1
{[%clk 0:01:20.8]} 26... Qh4+ {[%clk 0:00:26.5]} 27. Ke2 {[%clk 0:01:20.9]}
27... Ne5 {[%clk 0:00:16]} 28. Rdf1 {[%clk 0:00:38.7]} 28... Bc6 {[%clk
0:00:13.1]} 29. fxg6+ {[%clk 0:00:34.7]} 29... Kxh6 {[%clk 0:00:11.6]} 30. Rh1
{[%clk 0:00:18.5]} 30... Bxd5 {[%clk 0:00:05.9]} 31. Rxh4+ {[%clk 0:00:18.1]}
31... Kg5 {[%clk 0:00:06.6]} 32. Rxf8 {[%clk 0:00:13.6]} 32... Rxf8 {[%clk
0:00:07.1]} 33. g7 {[%clk 0:00:12.2]} 33... Rg8 {[%clk 0:00:06.5]} 34. Ncxd5
{[%clk 0:00:11.2]} 34... Kxh4 {[%clk 0:00:04.8]} 35. Nf5+ {[%clk 0:00:10.2]}
35... Kg5 {[%clk 0:00:03.9]} 36. Nde7 {[%clk 0:00:10.9]} 36... Rxg7 {[%clk
0:00:03]} 37. Nxg7 {[%clk 0:00:11.3]} 37... Nxc4 {[%clk 0:00:03.8]} 38. b3
{[%clk 0:00:10.1]} 38... Nb6 {[%clk 0:00:03.8]} 39. Nd5 {[%clk 0:00:09.5]} 39...
Nxd5 {[%clk 0:00:03.2]} 40. exd5 {[%clk 0:00:10.2]} 40... Kf6 {[%clk 0:00:04]}
41. Ne8+ {[%clk 0:00:09.6]} 41... Ke5 {[%clk 0:00:04.8]} 42. Nxc7 {[%clk
0:00:10.3]} 42... Kd4 {[%clk 0:00:05]} 43. Nb5+ {[%clk 0:00:09.9]} 43... Kxd5
{[%clk 0:00:04.9]} 44. Nxa7 {[%clk 0:00:10]} 44... Kc5 {[%clk 0:00:05.8]} 45.
Kd3 {[%clk 0:00:09.8]} 45... Kb4 {[%clk 0:00:06.1]} 46. Kc2 {[%clk 0:00:09.4]}
46... d5 {[%clk 0:00:06]} 47. Nc8 {[%clk 0:00:09.1]} 47... d4 {[%clk 0:00:06.5]}
48. Nd6 {[%clk 0:00:09.2]} 48... Kc5 {[%clk 0:00:05.5]} 49. Nc4 {[%clk
0:00:09.1]} 1-0